[Event "Groningen Festival 2018-B"]
[Site "Groningen"]
[Date "2018.12.24"]
[Round "4"]
[White "Brendel, Bergit"]
[Black "Johnson, Matthew"]
[Result "1-0"]
[ECO "B01"]
[WhiteElo "1971"]
[BlackElo "2010"]
[Annotator "NA RC"]
[PlyCount "71"]
[EventDate "2018.12.22"]
[EventType "swiss"]
[EventCountry "NED"]
[SourceTitle "playchess.com"]
[Source "ChessBase"]
[SourceQuality "1"]
[TimeControl "40/5400+30:1800+30"]

{[%evp 8,58,47,39,54,55,32767,24,21,31,45,16,24,21,32,0,6,-16,-7,-14,-30,-30,-8,-55,-39,-98,0,0,0,0,207,219,250,235,241,201,292,257,511,530,491,475,497,578,525,494,537,535,522,500,525,541,487]} 1. e4 {[%emt 0:00:00]} d5 {[%emt 0:03:11]} 2. exd5 {[%emt 0:00:00]} Nf6 {[%emt 0:00:21]} 3. d4 {[%emt 0:00:02]} Qxd5 {[%emt 0:01:58]} 4. Nc3 {[%emt 0:00:07]} Qd8 {[%emt 0:00:32]} 5. Nf3 {[%emt 0:01:31]} c6 {[%emt 0:00:49] B01: Scandinavian Defence} (5... g6 6. Be2 Bg7 7. O-O O-O 8. Bf4 Nc6 9. Qd2 b6 10. Rad1 Bb7 11. Rfe1 e6 12. Bh6 Ne7 13. Bxg7 Kxg7 {1-0 (60) Piorun,K (2612)-Nakamura,H (2763) Batumi 2018}) 6. h3 {[%emt 0:02:00]} Bf5 {[%emt 0:03:14]} 7. Bc4 {[%emt 0:01:35]} e6 {[%emt 0:00:42]} 8. O-O {[%emt 0:05:18] LiveBook: 8 Games} Be7 {[%emt 0:00:30]} 9. Bf4 {[%emt 0:01:09]} Nbd7 {[%emt 0:00:32]} 10. Re1 {[%emt 0:01:36]} O-O {[%emt 0:00:12]} 11. Qe2 {[%emt 0:02:12]} Bb4 $146 {[%emt 0:01:13]} ({Predecessor:} 11... Nb6 12. Bb3 Nbd5 13. Bxd5 Nxd5 14. Nxd5 cxd5 {0-1 (46) Jordanov,M-Nikolovski,M (1795) Skopje 2015}) 12. a3 {[%emt 0:07:08]} Bxc3 {[%emt 0:08:25]} 13. bxc3 {[%emt 0:00:10]} Ne4 {[%emt 0:01:03]} 14. g4 {[%emt 0:03:33]} Bg6 {[%emt 0:00:33]} 15. Bd2 {[%emt 0:25:25]} Qa5 {[%emt 0:05:24]} 16. h4 {[%emt 0:13:48] [#]} (16. Bd3 $1 $15 Nxd2 17. Qxd2) 16... Nxd2 {[%emt 0:04:03]} (16... h5 $1 $17) 17. Qxd2 {[%emt 0:00:21]} h5 {[%emt 0:03:46]} 18. Ne5 {[%emt 0:01:59]} Nb6 $2 {[%emt 0:04:49] [#]} (18... Nxe5 $11 {and Black is okay.} 19. Rxe5 Qd8) 19. Bxe6 $1 {[%emt 0:15:56]} fxe6 {[%emt 0:05:50]} 20. Nxg6 {[%emt 0:00:06] Discovered Attack (Double check)} Rf6 {[%emt 0:02:18]} 21. Ne7+ {[%emt 0:06:33]} Kf7 {[%emt 0:00:46]} 22. g5 {[%emt 0:00:07]} Rf3 $2 {[%emt 0:04:40]} (22... Kxe7 {was necessary.} 23. Re5 (23. gxf6+ gxf6 24. Qf4 Qd5 $18) 23... Nd5) 23. Qe2 $1 {[%emt 0:00:07] Double Attack} Kxe7 {[%emt 0:04:11]} 24. Qxf3 {[%emt 0:00:34]} Qd5 {[%emt 0:02:16]} 25. Qxh5 {[%emt 0:00:37]} Nc4 {[%emt 0:00:57]} 26. Re2 {[%emt 0:01:03]} Re8 {[%emt 0:03:32]} 27. Qg6 {[%emt 0:03:52]} Kf8 {[%emt 0:00:17]} 28. Rae1 {[%emt 0:00:14]} Qf3 {[%emt 0:03:37]} 29. Qd3 {[%emt 0:00:25]} Qg4+ $18 {[%emt 0:01:34]} 30. Qg3 {[%emt 0:00:33]} Qf5 {[%emt 0:01:33]} 31. Re4 {[%emt 0:00:33]} Kg8 {[%emt 0:01:34]} 32. Qd3 {[%emt 0:02:03]} Nb2 {[%emt 0:03:55]} 33. Qe2 {[%emt 0:00:26]} Kf7 {[%emt 0:09:48]} 34. Re5 {[%emt 0:00:09]} Qh3 {[%emt 0:02:20]} 35. Qh5+ {[%emt 0:00:07]} Kf8 {[%emt 0:05:17]} 36. R1e3 {[%emt 0:00:21]} 1-0

[Event "Groningen Festival 2018-B"]
[Site "Groningen"]
[Date "2018.12.24"]
[Round "4"]
[White "Santema, Tjeerd"]
[Black "Slagter, Ruben"]
[Result "0-1"]
[ECO "D21"]
[WhiteElo "1776"]
[BlackElo "2086"]
[Annotator "NA RC"]
[PlyCount "34"]
[EventDate "2018.12.22"]
[EventType "swiss"]
[EventCountry "NED"]
[SourceTitle "playchess.com"]
[Source "ChessBase"]
[SourceQuality "1"]
[TimeControl "40/5400+30:1800+30"]

{[%evp 8,34,43,44,54,51,50,20,33,28,25,-32,-16,-3,-13,-30,-1,-190,-155,-357,-225,-405,-412,-461,-454,-671,-697,-752,-756]} 1. d4 {[%emt 0:00:00]} d5 {[%emt 0:00:00]} 2. c4 {[%emt 0:00:00]} dxc4 {[%emt 0:02:02]} 3. Nf3 {[%emt 0:00:00]} Nd7 {[%emt 0:00:17]} 4. e3 {[%emt 0:00:24] D21: Queen's Gambit Accepted: 3 Nf3 sidelines} (4. Nc3 a6 5. a4 Rb8 6. e4 b5 7. axb5 axb5 8. d5 Nc5 9. Ne5 Bd7 10. Be3 Nb3 11. Ra7 Nf6 12. Nxc4 bxc4 13. Bxc4 {½-½ (23) Giri,A (2782)-Mamedyarov,S (2801) chess.com INT 2018}) 4... Nb6 {[%emt 0:00:10]} 5. Nbd2 {[%emt 0:04:10] LiveBook: 4 Games} Be6 {[%emt 0:01:29]} 6. Qc2 {[%emt 0:02:19]} Nf6 {[%emt 0:04:41]} 7. a4 $146 {[%emt 0:03:23]} ({Predecessor:} 7. Nxc4 Nxc4 8. Bxc4 Bxc4 9. Qxc4 c6 10. O-O e6 11. Bd2 Qd5 {½-½ (25) Lukacs,P (2465)-Kovacevic,V (2500) Tuzla 1981}) 7... a5 {[%emt 0:01:28]} 8. h3 {[%emt 0:12:17]} Nfd5 {[%emt 0:07:35]} 9. Nxc4 {[%emt 0:11:50]} (9. e4 $1 $14) 9... Nb4 {[%emt 0:04:38]} 10. Qc3 {[%emt 0:05:00]} N6d5 {[%emt 0:02:10]} 11. Qb3 {[%emt 0:02:40]} Bf5 {[%emt 0:04:33]} 12. e4 $2 {[%emt 0:09:59]} (12. Na3 $11 {and White stays safe.}) 12... Bxe4 {[%emt 0:03:22]} 13. Nce5 $2 {[%emt 0:02:35]} (13. Na3 {was the only chance.}) 13... e6 {[%emt 0:09:01]} 14. Nxf7 $2 {[%emt 0:04:27]} (14. Bd3 {might work better.} Nxd3+ 15. Nxd3) 14... Bc2 {[%emt 0:03:41]} ({Less strong is} 14... Kxf7 15. Ng5+ Qxg5 16. Bxg5 $19) 15. Nxd8 {[%emt 0:02:36]} Bxb3 {[%emt 0:00:13]} 16. Nxb7 {[%emt 0:09:32]} (16. Bb5+ $142 c6 17. O-O) 16... Nc2+ {[%emt 0:00:50] Double Attack} 17. Kd2 {[%emt 0:00:08]} Bb4+ $19 {[%emt 0:03:11]} 0-1

[Event "Groningen Festival 2018-B"]
[Site "Groningen"]
[Date "2018.12.26"]
[Round "5"]
[White "Bezemer, Arno"]
[Black "Viersma, Murk"]
[Result "1-0"]
[ECO "C96"]
[WhiteElo "2278"]
[BlackElo "1939"]
[Annotator "RC"]
[PlyCount "73"]
[EventDate "2018.12.22"]
[EventType "swiss"]
[EventCountry "NED"]
[SourceTitle "playchess.com"]
[Source "ChessBase"]
[SourceQuality "1"]
[TimeControl "40/5400+30:1800+30"]

1. e4 {[%emt 0:01:17]} e5 {[%emt 0:00:00]} 2. Nf3 {[%emt 0:00:05]} Nc6 {[%emt 0:00:00]} 3. Bb5 {[%emt 0:00:08]} a6 {[%emt 0:00:00]} 4. Ba4 {[%emt 0:00:06]} Nf6 {[%emt 0:00:00]} 5. O-O {[%emt 0:00:05]} Be7 {[%emt 0:00:11]} 6. Re1 {[%emt 0:00:06]} b5 {[%emt 0:00:15]} 7. Bb3 {[%emt 0:00:06]} d6 {[%emt 0:00:21]} 8. c3 {[%emt 0:00:06]} O-O {[%emt 0:00:20]} 9. d4 {[%emt 0:00:04]} exd4 {[%emt 0:03:10]} 10. cxd4 {[%emt 0:00:56]} Na5 {[%emt 0:00:35]} 11. Bc2 {[%emt 0:03:08]} c5 {[%emt 0:01:14]} 12. h3 {[%emt 0:09:14]} Nd7 {[%emt 0:09:01]} 13. Nc3 {[%emt 0:04:11]} Nc6 {[%emt 0:14:59]} 14. Nd5 {[%emt 0:03:25]} Nxd4 {[%emt 0:06:40]} 15. Nxd4 {[%emt 0:00:32]} cxd4 {[%emt 0:00:08]} 16. Qxd4 {[%emt 0:01:36]} Bb7 {[%emt 0:08:03]} 17. Nxe7+ {[%emt 0:04:38]} Qxe7 {[%emt 0:00:09]} 18. Bf4 {[%emt 0:03:17]} Ne5 {[%emt 0:01:40]} 19. Rad1 {[%emt 0:00:19]} Rfd8 {[%emt 0:00:53]} 20. Bb3 {[%emt 0:05:36]} Qf6 {[%emt 0:15:28]} 21. Bg3 {[%emt 0:02:09]} Qe7 {[%emt 0:20:23]} 22. f4 {[%emt 0:05:31]} Nc6 {[%emt 0:03:32]} 23. Qf2 {[%emt 0:01:57]} Kh8 {[%emt 0:01:34]} 24. Bh4 {[%emt 0:08:09]} f6 {[%emt 0:01:43]} 25. Qd2 {[%emt 0:01:37]} Qc7 {[%emt 0:02:47]} 26. Rc1 {[%emt 0:04:38]} Re8 {[%emt 0:02:21]} 27. Qd5 {[%emt 0:07:03]} Rad8 {[%emt 0:01:42]} 28. Qh5 {[%emt 0:02:42]} Qe7 {[%emt 0:02:17]} 29. Bf7 {[%emt 0:04:02]} Rf8 {[%emt 0:00:17]} 30. Bg6 {[%emt 0:00:12]} h6 {[%emt 0:00:07]} 31. Rc3 {[%emt 0:07:59]} b4 {[%emt 0:01:02]} 32. Rc4 {[%emt 0:01:24]} a5 {[%emt 0:01:28]} 33. Rec1 {[%emt 0:00:18]} Rc8 {[%emt 0:00:15]} 34. Bf5 {[%emt 0:00:23]} Qe8 {[%emt 0:00:22]} 35. Qxe8 {[%emt 0:01:00]} Rfxe8 {[%emt 0:00:11]} 36. Bxc8 {[%emt 0:00:21]} Rxc8 {[%emt 0:00:08]} 37. Bg3 {[%emt 0:20:10]} 1-0

[Event "Groningen Festival 2018-B"]
[Site "Groningen"]
[Date "2018.12.26"]
[Round "5"]
[White "Slagter, Ruben"]
[Black "Wissmann, Dolf"]
[Result "1-0"]
[ECO "B12"]
[WhiteElo "2086"]
[BlackElo "2049"]
[Annotator "NA"]
[PlyCount "69"]
[EventDate "2018.12.22"]
[EventType "swiss"]
[EventCountry "NED"]
[SourceTitle "playchess.com"]
[Source "ChessBase"]
[SourceQuality "1"]
[TimeControl "40/5400+30:1800+30"]

1. e4 {[%emt 0:00:00]} c6 {[%emt 0:00:00]} 2. d4 {[%emt 0:00:00]} d6 {[%emt 0:00:00]} 3. Nc3 {[%emt 0:00:41]} Nd7 {[%emt 0:00:11]} 4. Be3 {[%emt 0:00:47]} e5 {[%emt 0:04:47]} 5. Nge2 {[%emt 0:04:41]} Ngf6 {[%emt 0:04:52]} 6. h3 {[%emt 0:03:16]} b5 {[%emt 0:01:54]} 7. a3 {[%emt 0:02:59]} a6 {[%emt 0:04:33]} 8. g4 {[%emt 0:04:28]} Bb7 {[%emt 0:01:48]} 9. Bg2 {[%emt 0:04:20]} d5 {[%emt 0:06:40]} 10. O-O {[%emt 0:12:44]} Bd6 {[%emt 0:17:18]} 11. exd5 {[%emt 0:04:12]} cxd5 {[%emt 0:02:43]} 12. dxe5 {[%emt 0:08:49]} Nxe5 {[%emt 0:00:55]} 13. Nf4 {[%emt 0:05:33]} O-O {[%emt 0:05:40]} 14. Ncxd5 {[%emt 0:05:18]} Nfxg4 {[%emt 0:03:53]} 15. hxg4 {[%emt 0:02:24]} Qh4 {[%emt 0:00:44]} 16. f3 {[%emt 0:02:03]} Rad8 {[%emt 0:10:34]} 17. Qe1 {[%emt 0:03:03]} Qh6 {[%emt 0:04:29]} 18. Nh5 {[%emt 0:05:01]} Qg6 {[%emt 0:00:47]} 19. Ndf4 {[%emt 0:01:28]} Qxc2 {[%emt 0:00:17]} 20. Qc1 {[%emt 0:02:11]} Qa4 {[%emt 0:06:09]} 21. Bb6 {[%emt 0:03:50]} Rd7 {[%emt 0:03:08]} 22. b4 {[%emt 0:05:51]} Rc8 {[%emt 0:02:55]} 23. Qb1 {[%emt 0:01:25]} Nc4 {[%emt 0:01:55]} 24. Bc5 {[%emt 0:01:53]} Rxc5 {[%emt 0:01:47]} 25. bxc5 {[%emt 0:00:18]} Bxc5+ {[%emt 0:00:10]} 26. Kh1 {[%emt 0:00:27]} Ne3 {[%emt 0:04:41]} 27. Re1 {[%emt 0:02:22]} Qd4 {[%emt 0:01:44]} 28. Ra2 {[%emt 0:04:52]} g6 {[%emt 0:03:16]} 29. Rxe3 {[%emt 0:01:17]} gxh5 {[%emt 0:00:18]} 30. Re8+ {[%emt 0:00:21]} Bf8 {[%emt 0:00:26]} 31. Qf5 {[%emt 0:00:54]} Qd1+ {[%emt 0:02:13]} 32. Kh2 {[%emt 0:00:08]} Qd6 {[%emt 0:00:05]} 33. Rd2 {[%emt 0:01:44]} Qxd2 {[%emt 0:02:45]} 34. Qg5+ {[%emt 0:00:10]} Kh8 {[%emt 0:00:08]} 35. Rxf8# {[%emt 0:00:07]} 1-0

[Event "Groningen Festival 2018-B"]
[Site "Groningen"]
[Date "2018.12.26"]
[Round "5"]
[White "Nixdorf, Andre"]
[Black "Brendel, Bergit"]
[Result "1-0"]
[ECO "D07"]
[WhiteElo "1977"]
[BlackElo "1971"]
[Annotator "NA"]
[PlyCount "73"]
[EventDate "2018.12.22"]
[EventType "swiss"]
[EventCountry "NED"]
[SourceTitle "playchess.com"]
[Source "ChessBase"]
[SourceQuality "1"]
[TimeControl "40/5400+30:1800+30"]

1. d4 {[%emt 0:00:00]} d5 {[%emt 0:00:00]} 2. Nf3 {[%emt 0:00:00]} Nc6 {[%emt 0:00:13]} 3. c4 {[%emt 0:00:12]} Bg4 {[%emt 0:00:41]} 4. Nc3 {[%emt 0:01:16]} e6 {[%emt 0:04:19]} 5. cxd5 {[%emt 0:03:42]} exd5 {[%emt 0:02:49]} 6. Bf4 {[%emt 0:00:32]} Bb4 {[%emt 0:05:29]} 7. e3 {[%emt 0:02:58]} Nf6 {[%emt 0:02:24]} 8. Bb5 {[%emt 0:11:30]} O-O {[%emt 0:02:15]} 9. Qa4 {[%emt 0:08:11]} Bxc3+ {[%emt 0:09:59]} 10. bxc3 {[%emt 0:00:07]} Bxf3 {[%emt 0:00:05]} 11. gxf3 {[%emt 0:01:52]} Nh5 {[%emt 0:00:47]} 12. Bg3 {[%emt 0:00:34]} Qf6 {[%emt 0:15:53]} 13. Be2 {[%emt 0:03:55]} Qh6 {[%emt 0:04:10]} 14. O-O-O {[%emt 0:04:14]} f5 {[%emt 0:05:12]} 15. f4 {[%emt 0:03:52]} Nf6 {[%emt 0:03:16]} 16. c4 {[%emt 0:15:37]} Kh8 {[%emt 0:06:49]} 17. Bf3 {[%emt 0:09:28]} dxc4 {[%emt 0:08:47]} 18. d5 {[%emt 0:04:16]} Ne7 {[%emt 0:01:48]} 19. d6 {[%emt 0:04:52]} cxd6 {[%emt 0:05:41]} 20. Rxd6 {[%emt 0:00:17]} Nc8 {[%emt 0:00:24]} 21. Re6 {[%emt 0:02:42]} Nb6 {[%emt 0:01:04]} 22. Qb5 {[%emt 0:02:07]} Rad8 {[%emt 0:01:45]} 23. Qxf5 {[%emt 0:08:58]} Nbd7 {[%emt 0:04:33]} 24. Rd1 {[%emt 0:01:26]} g6 {[%emt 0:02:14]} 25. Qa5 {[%emt 0:04:13]} Qg7 {[%emt 0:00:37]} 26. Bh4 {[%emt 0:01:32]} Rc8 {[%emt 0:05:13]} 27. Qc3 {[%emt 0:00:42]} Rce8 {[%emt 0:04:12]} 28. Rdd6 {[%emt 0:02:48]} Rxe6 {[%emt 0:00:35]} 29. Rxe6 {[%emt 0:00:01]} b5 {[%emt 0:00:24]} 30. Bc6 {[%emt 0:00:16]} Rf7 {[%emt 0:01:56]} 31. Bxb5 {[%emt 0:01:40]} h6 {[%emt 0:00:45]} 32. Rd6 {[%emt 0:00:59]} Kh7 {[%emt 0:00:30]} 33. Qd4 {[%emt 0:00:33]} g5 {[%emt 0:00:48]} 34. fxg5 {[%emt 0:00:10]} hxg5 {[%emt 0:00:01]} 35. Bg3 {[%emt 0:00:18]} Nb6 {[%emt 0:00:13]} 36. Be5 {[%emt 0:00:20]} Kg6 {[%emt 0:01:07]} 37. Be8 {[%emt 0:00:44]} 1-0

[Event "Groningen Festival 2018-B"]
[Site "Groningen"]
[Date "2018.12.26"]
[Round "5"]
[White "Zuiderweg, Edwin"]
[Black "Van Hamond, Fons"]
[Result "1/2-1/2"]
[ECO "B26"]
[WhiteElo "1942"]
[BlackElo "2001"]
[Annotator "NA"]
[PlyCount "54"]
[EventDate "2018.12.22"]
[EventType "swiss"]
[EventCountry "NED"]
[SourceTitle "playchess.com"]
[Source "ChessBase"]
[SourceQuality "1"]
[TimeControl "40/5400+30:1800+30"]

1. e4 {[%emt 0:00:51]} c5 {[%emt 0:01:21]} 2. Nc3 {[%emt 0:00:07]} Nc6 {[%emt 0:01:33]} 3. g3 {[%emt 0:03:20]} g6 {[%emt 0:01:28]} 4. Bg2 {[%emt 0:00:36]} Bg7 {[%emt 0:00:05]} 5. d3 {[%emt 0:00:13]} d6 {[%emt 0:00:17]} 6. Be3 {[%emt 0:00:12]} e5 {[%emt 0:05:33]} 7. Qd2 {[%emt 0:00:46]} f5 {[%emt 0:00:45]} 8. f4 {[%emt 0:02:15]} Nf6 {[%emt 0:05:17]} 9. h3 {[%emt 0:02:14]} O-O {[%emt 0:03:36]} 10. Nf3 {[%emt 0:01:05]} Nh5 {[%emt 0:07:56]} 11. exf5 {[%emt 0:07:10]} gxf5 {[%emt 0:12:35]} 12. Qf2 {[%emt 0:04:17]} Qa5 {[%emt 0:05:20]} 13. O-O {[%emt 0:14:29]} exf4 {[%emt 0:16:43]} 14. gxf4 {[%emt 0:00:15]} h6 {[%emt 0:01:16]} 15. Bd2 {[%emt 0:02:02]} Be6 {[%emt 0:07:53]} 16. Nd5 {[%emt 0:07:11]} Qd8 {[%emt 0:00:19]} 17. Nh4 {[%emt 0:05:36]} Bxb2 {[%emt 0:03:26]} 18. Rab1 {[%emt 0:02:03]} Bd4 {[%emt 0:00:10]} 19. Be3 {[%emt 0:00:15]} Rb8 {[%emt 0:01:12]} 20. Bf3 {[%emt 0:06:58]} Ng7 {[%emt 0:08:31]} 21. c3 {[%emt 0:01:31]} Bxe3 {[%emt 0:01:03]} 22. Nxe3 {[%emt 0:00:24]} Kh7 {[%emt 0:02:22]} 23. Qg3 {[%emt 0:03:38]} Qf6 {[%emt 0:00:22]} 24. Nd5 {[%emt 0:01:54]} Qf7 {[%emt 0:02:45]} 25. Ne3 {[%emt 0:15:30]} Rg8 {[%emt 0:00:49]} 26. Kh2 {[%emt 0:01:38]} Nh5 {[%emt 0:05:23]} 27. Qf2 {[%emt 0:00:18]} d5 {[%emt 0:01:55]} 1/2-1/2

[Event "Groningen Festival 2018-B"]
[Site "Groningen"]
[Date "2018.12.27"]
[Round "6"]
[White "Tromp, Pieter"]
[Black "Slagter, Ruben"]
[Result "0-1"]
[ECO "B10"]
[WhiteElo "2080"]
[BlackElo "2086"]
[Annotator "NA"]
[PlyCount "55"]
[EventDate "2018.12.22"]
[EventType "swiss"]
[EventCountry "NED"]
[SourceTitle "playchess.com"]
[Source "ChessBase"]
[SourceQuality "1"]
[TimeControl "40/5400+30:1800+30"]

1. e4 {[%emt 0:00:00]} c5 {[%emt 0:00:07]} 2. Nf3 {[%emt 1:31:00]} g6 {[%emt 0:00:38]} 3. c3 {[%emt 0:00:31]} Bg7 {[%emt 0:00:33]} 4. d4 {[%emt 0:00:42]} cxd4 {[%emt 1:30:42]} 5. cxd4 {[%emt 0:04:26]} d5 {[%emt 0:00:07]} 6. exd5 {[%emt 0:04:49]} Qxd5 {[%emt 1:27:34]} 7. Nc3 {[%emt 0:01:47]} Qa5 {[%emt 1:21:40]} 8. Bc4 {[%emt 0:04:32]} Nf6 {[%emt 0:04:19]} 9. Ne5 {[%emt 0:01:36]} O-O {[%emt 0:02:56]} 10. Qb3 {[%emt 0:01:10]} e6 {[%emt 0:03:17]} 11. O-O {[%emt 1:15:21]} Nc6 {[%emt 0:06:13]} 12. Nxc6 {[%emt 1:12:52]} bxc6 {[%emt 0:00:23]} 13. Bf4 {[%emt 0:06:36]} Ba6 {[%emt 0:06:31]} 14. Rfe1 {[%emt 0:13:13]} Nd5 {[%emt 0:04:22]} 15. Bxd5 {[%emt 0:01:11]} cxd5 {[%emt 0:00:22]} 16. Be5 {[%emt 0:11:31]} Bxe5 {[%emt 0:04:34]} 17. Rxe5 {[%emt 0:00:34]} Rab8 {[%emt 0:00:37]} 18. Qd1 {[%emt 0:11:08]} Rxb2 {[%emt 0:02:03]} 19. Qc1 {[%emt 0:03:02]} Rb4 {[%emt 0:50:57]} 20. Qh6 {[%emt 0:05:50]} Rc8 {[%emt 0:05:34]} 21. Ne4 {[%emt 0:02:15]} Qd8 {[%emt 0:04:57]} 22. Ng5 {[%emt 0:02:49]} Qf6 {[%emt 0:01:21]} 23. Qxh7+ {[%emt 0:16:37]} Kf8 {[%emt 0:00:09]} 24. Qh6+ {[%emt 0:01:50]} Qg7 {[%emt 0:35:50]} 25. Qh3 {[%emt 0:06:28]} Rc6 {[%emt 0:10:45]} 26. Qa3 {[%emt 0:01:04]} Rcb6 {[%emt 0:20:12]} 27. Rb1 {[%emt 0:07:30]} Qf6 28. Qc1 {[%emt 0:00:30]} 0-1

[Event "Groningen Festival 2018-B"]
[Site "Groningen"]
[Date "2018.12.27"]
[Round "6"]
[White "Wissmann, Dolf"]
[Black "Zuiderweg, Edwin"]
[Result "1-0"]
[ECO "A03"]
[WhiteElo "2049"]
[BlackElo "1942"]
[Annotator "NA"]
[PlyCount "89"]
[EventDate "2018.12.22"]
[EventType "swiss"]
[EventCountry "NED"]
[SourceTitle "playchess.com"]
[Source "ChessBase"]
[SourceQuality "1"]
[TimeControl "40/5400+30:1800+30"]

1. f4 {[%emt 0:00:51]} d5 {[%emt 0:00:03]} 2. Nf3 {[%emt 0:00:00]} c5 {[%emt 0:00:14]} 3. g3 {[%emt 0:00:19]} Nc6 {[%emt 0:00:17]} 4. Bg2 {[%emt 0:00:13]} Nf6 {[%emt 0:00:32]} 5. O-O {[%emt 0:00:22]} e6 {[%emt 0:00:10]} 6. d3 {[%emt 0:02:04]} Be7 {[%emt 0:00:17]} 7. c3 {[%emt 0:04:08]} O-O {[%emt 0:03:34]} 8. Qc2 {[%emt 0:04:16]} b6 {[%emt 0:01:31]} 9. e4 {[%emt 0:03:06]} Ba6 {[%emt 0:05:10]} 10. e5 {[%emt 0:05:13]} Nd7 {[%emt 0:00:45]} 11. Re1 {[%emt 0:00:48]} g6 {[%emt 0:07:37]} 12. a4 {[%emt 0:02:58]} Rc8 {[%emt 0:01:32]} 13. Na3 {[%emt 0:02:00]} d4 {[%emt 0:06:25]} 14. Nb5 {[%emt 0:04:44]} Bb7 {[%emt 0:13:10]} 15. h4 {[%emt 0:09:15]} a6 {[%emt 0:00:26]} 16. Na3 {[%emt 0:01:36]} Na5 {[%emt 0:18:11]} 17. Rb1 {[%emt 0:11:12]} Bd5 {[%emt 0:18:10]} 18. c4 {[%emt 0:10:45]} Bb7 {[%emt 0:04:17]} 19. h5 {[%emt 0:01:59]} Nc6 {[%emt 0:01:55]} 20. Qe2 {[%emt 0:03:26]} Re8 {[%emt 0:00:53]} 21. Nd2 {[%emt 0:03:58]} Qc7 {[%emt 0:00:25]} 22. Kf2 {[%emt 0:03:51]} f6 {[%emt 0:01:09]} 23. hxg6 {[%emt 0:03:32]} hxg6 {[%emt 0:01:56]} 24. Qg4 {[%emt 0:01:36]} Kf7 {[%emt 0:00:47]} 25. exf6 {[%emt 0:07:51]} Bxf6 {[%emt 0:00:09]} 26. Be4 {[%emt 0:02:09]} Nf8 {[%emt 0:01:27]} 27. Rh1 {[%emt 0:00:56]} Ne7 {[%emt 0:04:11]} 28. Bxb7 {[%emt 0:00:20]} Qxb7 {[%emt 0:00:16]} 29. Ne4 {[%emt 0:00:06]} Nf5 {[%emt 0:00:36]} 30. Qf3 {[%emt 0:02:22]} Qd7 {[%emt 0:00:35]} 31. Bd2 {[%emt 0:02:07]} Nd6 {[%emt 0:03:28]} 32. Rh2 {[%emt 0:04:22]} Nxe4+ {[%emt 0:00:18]} 33. dxe4 {[%emt 0:00:17]} Ke7 {[%emt 0:00:51]} 34. Rbh1 {[%emt 0:01:37]} Kd8 {[%emt 0:00:14]} 35. e5 {[%emt 0:00:18]} Bg7 {[%emt 0:00:46]} 36. b3 {[%emt 0:00:42]} Kc7 {[%emt 0:00:26]} 37. a5 {[%emt 0:00:34]} Re7 {[%emt 0:03:50]} 38. b4 {[%emt 0:01:09]} Rf7 {[%emt 0:01:44]} 39. axb6+ {[%emt 0:00:44]} Kxb6 {[%emt 0:00:02]} 40. Rb1 {[%emt 0:00:29]} Ka7 {[%emt 0:00:49]} 41. bxc5 {[%emt 0:06:41]} Rxc5 {[%emt 0:03:27]} 42. Nb5+ {[%emt 0:01:55]} axb5 {[%emt 0:01:09]} 43. Ra1+ {[%emt 0:00:10]} Kb8 {[%emt 0:03:54]} 44. Ra8+ {[%emt 0:00:11]} Kc7 {[%emt 0:00:09]} 45. Ba5# {[%emt 0:00:06]} 1-0

[Event "Groningen Festival 2018-B"]
[Site "Groningen"]
[Date "2018.12.27"]
[Round "6"]
[White "Wilsbeck, Jan B."]
[Black "Bezemer, Arno \[Compact A\]"]
[Result "1/2-1/2"]
[ECO "B21"]
[WhiteElo "1970"]
[BlackElo "2278"]
[Annotator "NA"]
[PlyCount "21"]
[EventDate "2018.12.22"]
[EventType "swiss"]
[EventCountry "NED"]
[SourceTitle "playchess.com"]
[Source "ChessBase"]
[SourceQuality "1"]
[TimeControl "40/5400+30:1800+30"]

1. e4 {[%emt 0:00:00]} c5 {[%emt 0:00:00]} 2. f4 {[%emt 0:00:02]} d5 {[%emt 0:00:07]} 3. exd5 {[%emt 0:00:30]} Nf6 {[%emt 0:00:30]} 4. Nc3 {[%emt 0:00:30]} Nxd5 {[%emt 0:00:30]} 5. Nf3 {[%emt 0:00:30]} Nc6 {[%emt 0:00:30]} 6. Bb5 {[%emt 0:00:30]} a6 {[%emt 0:00:30]} 7. Bxc6+ {[%emt 0:00:30]} bxc6 {[%emt 0:00:30]} 8. d3 {[%emt 0:00:30]} g6 {[%emt 0:00:30]} 9. Ne4 {[%emt 0:00:30]} Bg7 {[%emt 0:00:30]} 10. O-O {[%emt 0:00:30]} Nc7 {[%emt 0:00:30]} 11. Qe1 {[%emt 0:00:30]} 1/2-1/2

[Event "Groningen Festival 2018-B"]
[Site "Groningen"]
[Date "2018.12.28"]
[Round "7"]
[White "Slagter, Ruben"]
[Black "Van Hamond, Fons"]
[Result "1-0"]
[ECO "B20"]
[WhiteElo "2086"]
[BlackElo "2001"]
[Annotator "NA"]
[PlyCount "69"]
[EventDate "2018.12.22"]
[EventType "swiss"]
[EventCountry "NED"]
[SourceTitle "playchess.com"]
[Source "ChessBase"]
[SourceQuality "1"]
[TimeControl "40/5400+30:1800+30"]

1. e4 {[%emt 0:00:00]} c5 {[%emt 0:00:00]} 2. g3 {[%emt 0:00:00]} d5 {[%emt 0:00:55]} 3. exd5 {[%emt 0:00:10]} Qxd5 {[%emt 0:00:03]} 4. Nf3 {[%emt 0:00:19]} Bg4 {[%emt 0:00:17]} 5. Bg2 {[%emt 0:00:06]} Qe6+ {[%emt 0:00:19]} 6. Kf1 {[%emt 0:00:06]} Nc6 {[%emt 0:01:20]} 7. h3 {[%emt 0:01:23]} Bh5 {[%emt 0:02:00]} 8. d3 {[%emt 0:00:58]} Qd7 {[%emt 0:01:01]} 9. Be3 {[%emt 0:07:41]} e6 {[%emt 0:00:21]} 10. Nc3 {[%emt 0:02:07]} Nf6 {[%emt 0:01:35]} 11. a4 {[%emt 0:04:12]} Be7 {[%emt 0:06:02]} 12. a5 {[%emt 0:06:15]} Rd8 {[%emt 0:02:11]} 13. g4 {[%emt 0:06:15]} Bg6 {[%emt 0:00:45]} 14. Nh4 {[%emt 0:01:42]} Nd5 {[%emt 0:15:36]} 15. Nxd5 {[%emt 0:06:30]} Bxh4 {[%emt 0:02:41]} 16. Nf4 {[%emt 0:02:02]} c4 {[%emt 0:01:56]} 17. Nxg6 {[%emt 0:03:05]} hxg6 {[%emt 0:00:38]} 18. a6 {[%emt 0:01:24]} b6 {[%emt 0:18:15]} 19. Bf3 {[%emt 0:26:46]} cxd3 {[%emt 0:06:46]} 20. Qxd3 {[%emt 0:02:20]} Qxd3+ {[%emt 0:06:23]} 21. cxd3 {[%emt 0:00:06]} Nd4 {[%emt 0:02:32]} 22. Bd1 {[%emt 0:07:01]} Bf6 {[%emt 0:04:53]} 23. Rc1 {[%emt 0:02:33]} O-O {[%emt 0:10:17]} 24. Rc7 {[%emt 0:04:30]} Nb5 {[%emt 0:00:28]} 25. Rb7 {[%emt 0:00:10]} Rb8 {[%emt 0:00:32]} 26. Bf3 {[%emt 0:01:37]} Rxb7 {[%emt 0:10:40]} 27. axb7 {[%emt 0:00:30]} Rb8 {[%emt 0:00:01]} 28. Kg2 {[%emt 0:04:51]} Nd6 {[%emt 0:00:37]} 29. g5 {[%emt 0:01:19]} Bxb2 {[%emt 0:00:31]} 30. Rb1 {[%emt 0:00:46]} Bc3 {[%emt 0:02:03]} 31. Rc1 {[%emt 0:00:45]} Bb4 {[%emt 0:00:16]} 32. Bf4 {[%emt 0:02:14]} f6 {[%emt 0:00:15]} 33. Rc8+ {[%emt 0:01:47]} Rxc8 {[%emt 0:02:22]} 34. Bxd6 {[%emt 0:00:06]} Rd8 {[%emt 0:00:40]} 35. Bxb4 {[%emt 0:00:24]} 1-0